fUSD/lending_fUSD_20260605
["ID","MTS","AMOUNT","RATE_DAILY","PERIOD"]
[424166125,1780623069000,-500.0,0.0001833,2]
[424166130,1780623069000,-500.0,0.0001833,2]
[424166127,1780623069000,-500.0,0.0001833,2]
[424166126,1780623069000,-500.0,0.0001833,2]
[424166133,1780623069000,-500.0,0.0001833,2]
[424166135,1780623069000,-500.0,0.0001833,2]
[424166134,1780623069000,-500.0,0.0001833,2]
[424166139,1780623069000,-500.0,0.0001833,2]
[424166170,1780623069000,-500.0,0.0001833,2]
[424166118,1780623069000,-500.0,0.0001833,2]
[424166165,1780623069000,-500.0,0.0001833,2]
[424166196,1780623069000,-4038.33,0.0001872,2]
[424166198,1780623069000,-536.15,0.0001872,2]
[424166199,1780623069000,-500.0,0.00018767,2]
[424166200,1780623069000,-200.0,0.00018838,2]
[424166201,1780623069000,-151.0,0.00018838,2]
[424166209,1780623069000,-151.0,0.00018838,2]
[424166210,1780623069000,-151.0,0.00018838,2]
[424166206,1780623069000,-151.0,0.00018838,2]
[424166203,1780623069000,-151.0,0.00018838,2]
[424166211,1780623069000,-151.0,0.00018838,2]
[424166204,1780623069000,-151.0,0.00018838,2]
[424166202,1780623069000,-151.0,0.00018838,2]
[424166205,1780623069000,-151.0,0.00018838,2]
[424166208,1780623069000,-151.0,0.00018838,2]
[424166207,1780623069000,-151.0,0.00018838,2]
[424166212,1780623069000,-2080.17592889,0.00018838,2]
[424166213,1780623069000,-151.0,0.00018838,2]
[424166215,1780623069000,-151.0,0.00018838,2]
[424166214,1780623069000,-151.0,0.00018838,2]
[424166216,1780623069000,-151.0,0.00018838,2]
[424166221,1780623069000,-151.0,0.00018838,2]
[424166218,1780623069000,-151.0,0.00018838,2]
[424166217,1780623069000,-151.0,0.00018838,2]
[424166220,1780623069000,-151.0,0.00018838,2]
[424166164,1780623069000,-500.0,0.0001833,2]
[424166197,1780623069000,-28505.63,0.0001872,2]
[424166195,1780623069000,-19015.21,0.0001872,2]
[424166219,1780623069000,-151.0,0.00018838,2]
[424166190,1780623069000,-150.0,0.0001851,2]
[424166191,1780623069000,-264.52802051,0.0001851,2]
[424166168,1780623069000,-500.0,0.0001833,2]
[424166167,1780623069000,-500.0,0.0001833,2]
[424166173,1780623069000,-151.0,0.0001833,2]
[424166176,1780623069000,-151.0,0.00018356,2]
[424166171,1780623069000,-500.0,0.0001833,2]
[424166179,1780623069000,-834.811559,0.00018356,2]
[424166174,1780623069000,-151.0,0.00018338,2]
[424166172,1780623069000,-298.342053,0.0001833,2]
[424166177,1780623069000,-151.0,0.00018356,2]
[424166178,1780623069000,-151.0,0.00018356,2]
[424166175,1780623069000,-151.0,0.00018356,2]
[424166166,1780623069000,-500.0,0.0001833,2]
[424166182,1780623069000,-834.811559,0.00018356,2]
[424166181,1780623069000,-834.811559,0.00018356,2]
[424166188,1780623069000,-2129.0,0.0001837,2]
[424166189,1780623069000,-4072.3,0.0001841,2]
[424166192,1780623069000,-152.0,0.0001851,2]
[424166193,1780623069000,-153.0,0.0001851,2]
[424166194,1780623069000,-500.0,0.00018638,2]
[424166187,1780623069000,-573.64788463,0.00018358,2]
[424166185,1780623069000,-500.0,0.00018358,2]
[424166183,1780623069000,-89757.17,0.00018356,2]
[424166180,1780623069000,-834.811559,0.00018356,2]
[424166184,1780623069000,-500.0,0.00018358,2]
[424166186,1780623069000,-500.0,0.00018358,2]
[424166243,1780623070000,-4190.0,0.00019,2]
[424166252,1780623070000,-151.0,0.00019178,2]
[424166240,1780623070000,-150.0,0.00018924,2]
[424166241,1780623070000,-276.0,0.00018924,2]
[424166251,1780623070000,-151.0,0.00019178,2]
[424166249,1780623070000,-151.0,0.00019178,2]
[424166253,1780623070000,-151.0,0.00019178,2]
[424166250,1780623070000,-151.0,0.00019178,2]
[424166260,1780623070000,-187.729829,0.00019178,2]
[424166257,1780623070000,-151.0,0.00019178,2]
[424166259,1780623070000,-187.729829,0.00019178,2]
[424166254,1780623070000,-151.0,0.00019178,2]
[424166255,1780623070000,-151.0,0.00019178,2]
[424166258,1780623070000,-151.0,0.00019178,2]
[424166262,1780623070000,-187.729829,0.00019178,2]
[424166272,1780623070000,-500.28,0.000193,2]
[424166266,1780623070000,-187.729829,0.00019178,2]
[424166239,1780623070000,-150.0,0.00018924,2]
[424166256,1780623070000,-151.0,0.00019178,2]
[424166246,1780623070000,-169.58,0.00019007,2]
[424166231,1780623070000,-151.0,0.00018838,2]
[424166244,1780623070000,-5241.96394273,0.00019,2]
[424166263,1780623070000,-187.729829,0.00019178,2]
[424166222,1780623070000,-151.0,0.00018838,2]
[424166224,1780623070000,-151.0,0.00018838,2]
[424166223,1780623070000,-151.0,0.00018838,2]
[424166225,1780623070000,-151.0,0.00018838,2]
[424166226,1780623070000,-151.0,0.00018838,2]
[424166228,1780623070000,-151.0,0.00018838,2]
[424166229,1780623070000,-151.0,0.00018838,2]
[424166227,1780623070000,-151.0,0.00018838,2]
[424166245,1780623070000,-75506.02640937,0.00019,2]
[424166230,1780623070000,-151.0,0.00018838,2]
[424166235,1780623070000,-150.0,0.00018924,2]
[424166233,1780623070000,-151.0,0.00018838,2]
[424166234,1780623070000,-150.0,0.00018924,2]
[424166236,1780623070000,-150.0,0.00018924,2]
[424166237,1780623070000,-150.0,0.00018924,2]
[424166247,1780623070000,-169.58,0.00019007,2]
[424166238,1780623070000,-150.0,0.00018924,2]
[424166248,1780623070000,-245.968,0.00019019,2]
[424166242,1780623070000,-18471.41924797,0.00019,2]
[424166232,1780623070000,-151.0,0.00018838,2]
[424166265,1780623070000,-187.729829,0.00019178,2]
[424166261,1780623070000,-187.729829,0.00019178,2]
[424166264,1780623070000,-187.729829,0.00019178,2]
[424166292,1780623070000,-5288.05908078,0.0002,2]
[424166295,1780623070000,-2011.0,0.0002,2]
[424166294,1780623070000,-179.09784906,0.0002,2]
[424166296,1780623070000,-2472.0,0.0002,2]
[424166298,1780623070000,-25968.72912368,0.0002,2]
[424166299,1780623070000,-302.64746331,0.0002,2]
[424166297,1780623070000,-1494.14455338,0.0002,5]
[424166304,1780623070000,-905.0,0.0002,2]
[424166301,1780623070000,-187.729829,0.0002,2]
[424166293,1780623070000,-1556.44820915,0.0002,2]
[424166302,1780623070000,-187.729829,0.0002,2]
[424166300,1780623070000,-187.729829,0.0002,2]
[424166309,1780623070000,-200.0,0.0002,2]
[424166308,1780623070000,-10199.08431673,0.0002,2]
[424166306,1780623070000,-26824.11548599,0.0002,2]
[424166310,1780623070000,-1060.57803557,0.0002,2]
[424166311,1780623070000,-1000.0,0.0002,90]
[424166307,1780623070000,-1313.89951682,0.0002,2]
[424166312,1780623070000,-52425.61507123,0.0002,2]
[424166267,1780623070000,-187.729829,0.00019178,2]
[424166303,1780623070000,-187.729829,0.0002,2]
[424166291,1780623070000,-486.0,0.0002,2]
[424166305,1780623070000,-3950.0,0.0002,2]
[424166290,1780623070000,-1083.0,0.0002,2]
[424166269,1780623070000,-187.729829,0.00019178,2]
[424166289,1780623070000,-734.0,0.0002,2]
[424166273,1780623070000,-150.45242349,0.0001934,2]
[424166271,1780623070000,-671.576668,0.00019296,2]
[424166270,1780623070000,-187.729829,0.00019178,2]
[424166283,1780623070000,-2236.95670847,0.00019934,2]
[424166278,1780623070000,-217.554473,0.00019452,2]
[424166281,1780623070000,-2000.0,0.00019934,2]
[424166274,1780623070000,-200.0,0.00019386,2]
[424166286,1780623070000,-150.0,0.0002,2]
[424166268,1780623070000,-187.729829,0.00019178,2]
[424166275,1780623070000,-2157.14243826,0.00019386,2]
[424166277,1780623070000,-1700.0,0.00019452,2]
[424166276,1780623070000,-151.0,0.00019386,2]
[424166279,1780623070000,-2196.0,0.00019452,2]
[424166280,1780623070000,-358.41,0.000197,7]
[424166282,1780623070000,-200.0,0.00019934,2]
[424166285,1780623070000,-536.15,0.00019968,2]
[424166284,1780623070000,-151.0,0.00019934,2]
[424166288,1780623070000,-400.0,0.0002,2]
[424166287,1780623070000,-1197.057938,0.0002,2]
[424166352,1780623071000,-23011.3161902,0.000207,2]
[424166348,1780623071000,-150.0,0.0002058,2]
[424166353,1780623071000,-624.0,0.00020821,2]
[424166351,1780623071000,-4401.638,0.00020645,2]
[424166350,1780623071000,-150.39120637,0.0002058,2]
[424166344,1780623071000,-150.0,0.0002058,2]
[424166346,1780623071000,-150.0,0.0002058,2]
[424166347,1780623071000,-150.0,0.0002058,2]
[424166349,1780623071000,-150.0,0.0002058,2]
[424166356,1780623071000,-152.0,0.0002095,30]
[424166354,1780623071000,-26216.46038584,0.000209,30]
[424166355,1780623071000,-374.91661675,0.0002092,2]
[424166358,1780623071000,-1197.057938,0.00021,2]
[424166368,1780623071000,-3202.0,0.00021,2]
[424166360,1780623071000,-1083.0,0.00021,2]
[424166361,1780623071000,-486.0,0.00021,2]
[424166359,1780623071000,-734.0,0.00021,2]
[424166363,1780623071000,-2472.0,0.00021,2]
[424166364,1780623071000,-905.0,0.00021,2]
[424166366,1780623071000,-199.97418508,0.00021,2]
[424166367,1780623071000,-226.0,0.00021,2]
[424166357,1780623071000,-153.15134519,0.00020988,2]
[424166365,1780623071000,-1211.63839179,0.00021,2]
[424166370,1780623071000,-678.0,0.00021,2]
[424166379,1780623071000,-329.32469029,0.00021131,2]
[424166371,1780623071000,-3515.0,0.00021,2]
[424166345,1780623071000,-150.0,0.0002058,2]
[424166362,1780623071000,-2011.0,0.00021,2]
[424166343,1780623071000,-21868.7,0.00020548,2]
[424166329,1780623071000,-176.31671627,0.0002,2]
[424166338,1780623071000,-200.0,0.00020482,2]
[424166316,1780623071000,-152.0,0.0002,2]
[424166313,1780623071000,-8000.0,0.0002,2]
[424166315,1780623071000,-226.0,0.0002,2]
[424166314,1780623071000,-13117.27231679,0.0002,2]
[424166318,1780623071000,-3202.0,0.0002,2]
[424166317,1780623071000,-5291.33687124,0.0002,2]
[424166328,1780623071000,-176.31671627,0.0002,2]
[424166322,1780623071000,-3515.0,0.0002,2]
[424166327,1780623071000,-176.31671627,0.0002,2]
[424166373,1780623071000,-1763.0,0.00021,2]
[424166319,1780623071000,-446.0,0.0002,2]
[424166323,1780623071000,-15340.2,0.0002,2]
[424166324,1780623071000,-994.0,0.0002,2]
[424166320,1780623071000,-3106.0,0.0002,2]
[424166321,1780623071000,-678.0,0.0002,2]
[424166325,1780623071000,-1763.0,0.0002,2]
[424166330,1780623071000,-176.31671627,0.0002,2]
[424166333,1780623071000,-285.0,0.00020136,2]
[424166332,1780623071000,-1953.0,0.00020017,2]
[424166334,1780623071000,-2196.0,0.00020136,2]
[424166336,1780623071000,-671.576668,0.00020297,2]
[424166342,1780623071000,-150.45242349,0.00020524,2]
[424166335,1780623071000,-150.0,0.00020137,2]
[424166331,1780623071000,-176.31671628,0.0002,2]
[424166339,1780623071000,-2319.72410669,0.00020482,2]
[424166337,1780623071000,-4072.3,0.00020381,2]
[424166340,1780623071000,-151.0,0.00020482,2]
[424166341,1780623071000,-164.93,0.00020484,2]
[424166369,1780623071000,-446.0,0.00021,2]
[424166326,1780623071000,-526.0,0.0002,2]
[424166372,1780623071000,-994.0,0.00021,2]
[424166411,1780623071000,-2112.48062307,0.000219,2]
[424166406,1780623071000,-151.0,0.00021761,2]
[424166407,1780623071000,-297.446509,0.00021761,2]
[424166408,1780623071000,-46025.7360718,0.00021771,2]
[424166414,1780623071000,-10176.97688076,0.000219,2]
[424166416,1780623071000,-1962.20277148,0.000219,2]
[424166413,1780623071000,-782.59573155,0.000219,2]
[424166412,1780623071000,-1006.83748556,0.000219,2]
[424166415,1780623071000,-683.58283745,0.000219,2]
[424166428,1780623071000,-486.0,0.00022,2]
[424166418,1780623071000,-151.0,0.00021918,2]
[424166429,1780623071000,-2011.0,0.00022,2]
[424166417,1780623071000,-151.0,0.00021918,2]
[424166410,1780623071000,-7160.72237861,0.000219,2]
[424166419,1780623071000,-5000.0,0.00021918,2]
[424166421,1780623071000,-166.0,0.00021918,2]
[424166422,1780623071000,-150.0,0.00021918,2]
[424166423,1780623071000,-200.0,0.00021918,2]
[424166424,1780623071000,-1197.057938,0.00022,2]
[424166427,1780623071000,-1083.0,0.00022,2]
[424166426,1780623071000,-734.0,0.00022,2]
[424166425,1780623071000,-450.0,0.00022,2]
[424166430,1780623071000,-2472.0,0.00022,2]
[424166433,1780623071000,-160.0,0.00022,2]
[424166435,1780623071000,-3202.0,0.00022,2]
[424166434,1780623071000,-300.0,0.00022,2]
[424166431,1780623071000,-905.0,0.00022,2]
[424166380,1780623071000,-500.28,0.000212,2]
[424166420,1780623071000,-1007.2,0.00021918,2]
[424166409,1780623071000,-151.0,0.00021771,2]
[424166432,1780623071000,-226.0,0.00022,2]
[424166401,1780623071000,-151.0,0.00021702,2]
[424166405,1780623071000,-151.0,0.00021761,2]
[424166375,1780623071000,-215.73365239,0.00021,30]
[424166376,1780623071000,-200.0,0.0002103,2]
[424166374,1780623071000,-526.0,0.00021,2]
[424166377,1780623071000,-2405.55389863,0.0002103,2]
[424166381,1780623071000,-834.811559,0.00021273,2]
[424166392,1780623071000,-58462.28141324,0.000215,2]
[424166382,1780623071000,-834.811559,0.00021273,2]
[424166384,1780623071000,-834.811567,0.00021273,2]
[424166385,1780623071000,-671.576668,0.00021299,2]
[424166383,1780623071000,-834.811559,0.00021273,2]
[424166393,1780623071000,-225.64440588,0.000215,2]
[424166386,1780623071000,-1547.0,0.00021358,2]
[424166388,1780623071000,-155.3256539,0.00021417,3]
[424166378,1780623071000,-284.99349563,0.0002103,2]
[424166389,1780623071000,-500.0,0.00021439,2]
[424166390,1780623071000,-281.590561,0.00021475,2]
[424166398,1780623071000,-152.0,0.00021676,7]
[424166400,1780623071000,-151.0,0.00021702,2]
[424166404,1780623071000,-151.0,0.00021761,2]
[424166399,1780623071000,-151.0,0.00021702,2]
[424166402,1780623071000,-15340.2,0.00021703,2]
[424166396,1780623071000,-152.0,0.00021676,7]
[424166387,1780623071000,-152.0,0.00021358,2]
[424166397,1780623071000,-152.0,0.00021676,7]
[424166391,1780623071000,-154.930219,0.00021475,2]
[424166403,1780623071000,-693.0918697,0.00021761,2]
[424166395,1780623071000,-2494.55939288,0.00021578,2]
[424166394,1780623071000,-200.0,0.00021578,2]
[424166473,1780623072000,-590.54288495,0.00022407,2]
[424166469,1780623072000,-200.0,0.00022334,2]
[424166468,1780623072000,-671.576668,0.000223,2]
[424166466,1780623072000,-1962.20277148,0.000223,2]
[424166467,1780623072000,-186.04151345,0.000223,2]
[424166460,1780623072000,-7160.72237861,0.000223,2]
[424166465,1780623072000,-683.58283745,0.000223,2]
[424166474,1780623072000,-590.54288494,0.00022407,2]
[424166471,1780623072000,-1373.0,0.00022407,2]
[424166464,1780623072000,-10176.97688076,0.000223,2]
[424166472,1780623072000,-1324.0,0.00022407,2]
[424166481,1780623072000,-153.0,0.00022417,2]
[424166475,1780623072000,-590.54288494,0.00022407,2]
[424166476,1780623072000,-275.57849911,0.00022407,2]
[424166477,1780623072000,-153.0,0.00022417,2]
[424166480,1780623072000,-153.0,0.00022417,2]
[424166479,1780623072000,-153.0,0.00022417,2]
[424166482,1780623072000,-153.0,0.00022417,2]
[424166483,1780623072000,-158.71573141,0.00022417,2]
[424166489,1780623072000,-158.38,0.00022426,2]
[424166485,1780623072000,-158.38,0.00022426,2]
[424166457,1780623072000,-258.15,0.000222,14]
[424166486,1780623072000,-158.38,0.00022426,2]
[424166470,1780623072000,-4072.3,0.00022353,2]
[424166461,1780623072000,-2112.48062307,0.000223,2]
[424166442,1780623072000,-526.0,0.00022,2]
[424166459,1780623072000,-403.0,0.00022254,2]
[424166484,1780623072000,-158.38,0.00022426,2]
[424166438,1780623072000,-3515.0,0.00022,2]
[424166440,1780623072000,-994.0,0.00022,2]
[424166436,1780623072000,-446.0,0.00022,2]
[424166439,1780623072000,-2087.47,0.00022,2]
[424166437,1780623072000,-678.0,0.00022,2]
[424166441,1780623072000,-1763.0,0.00022,2]
[424166454,1780623072000,-2586.85809042,0.00022126,2]
[424166451,1780623072000,-1962.20277148,0.000221,2]
[424166452,1780623072000,-244.23628083,0.0002211,2]
[424166453,1780623072000,-200.0,0.00022126,2]
[424166443,1780623072000,-320.19506914,0.00022053,2]
[424166445,1780623072000,-7160.72237861,0.000221,2]
[424166444,1780623072000,-1124.0,0.00022099,2]
[424166447,1780623072000,-1006.83748556,0.000221,2]
[424166449,1780623072000,-10176.97688076,0.000221,2]
[424166448,1780623072000,-782.59573155,0.000221,2]
[424166446,1780623072000,-2112.48062307,0.000221,2]
[424166450,1780623072000,-683.58283745,0.000221,2]
[424166456,1780623072000,-152.0,0.000222,2]
[424166455,1780623072000,-419.37,0.00022139,2]
[424166462,1780623072000,-1006.83748556,0.000223,2]
[424166463,1780623072000,-782.59573155,0.000223,2]
[424166458,1780623072000,-308.24,0.000222,2]
[424166478,1780623072000,-153.0,0.00022417,2]
[424166487,1780623072000,-158.38,0.00022426,2]
[424166533,1780623072000,-1962.20277148,0.000228,2]
[424166518,1780623072000,-152.0,0.0002255,2]
[424166516,1780623072000,-152.0,0.0002255,2]
[424166519,1780623072000,-214.87,0.00022599,2]
[424166520,1780623072000,-3666.13903562,0.000226,2]
[424166526,1780623072000,-532.15878607,0.0002271,2]
[424166523,1780623072000,-19015.21,0.00022691,2]
[424166522,1780623072000,-2682.57183977,0.00022674,2]
[424166524,1780623072000,-4038.33,0.00022691,2]
[424166525,1780623072000,-28505.63,0.00022691,2]
[424166528,1780623072000,-2112.48062307,0.000228,2]
[424166532,1780623072000,-683.58283745,0.000228,2]
[424166527,1780623072000,-7160.72237861,0.000228,2]
[424166535,1780623072000,-751.15,0.00022975,2]
[424166537,1780623072000,-1197.057938,0.00023,2]
[424166534,1780623072000,-151.0,0.000229,2]
[424166539,1780623072000,-2112.48062307,0.00023,2]
[424166538,1780623072000,-7160.72237861,0.00023,2]
[424166536,1780623072000,-515.72,0.00022975,2]
[424166531,1780623072000,-10176.97688076,0.000228,2]
[424166529,1780623072000,-1006.83748556,0.000228,2]
[424166530,1780623072000,-782.59573155,0.000228,2]
[424166488,1780623072000,-158.38,0.00022426,2]
[424166540,1780623072000,-10176.97688076,0.00023,2]
[424166517,1780623072000,-152.0,0.0002255,2]
[424166515,1780623072000,-152.0,0.0002255,2]
[424166521,1780623072000,-200.0,0.00022674,2]
[424166514,1780623072000,-152.0,0.0002255,2]
[424166502,1780623072000,-187.729829,0.000225,2]
[424166501,1780623072000,-187.729829,0.000225,2]
[424166491,1780623072000,-1988.11,0.00022466,2]
[424166490,1780623072000,-158.38,0.00022426,2]
[424166493,1780623072000,-7160.72237861,0.000225,2]
[424166498,1780623072000,-683.58283745,0.000225,2]
[424166496,1780623072000,-782.59573155,0.000225,2]
[424166513,1780623072000,-152.0,0.0002255,2]
[424166500,1780623072000,-36096.85512917,0.000225,2]
[424166495,1780623072000,-1006.83748556,0.000225,2]
[424166494,1780623072000,-2112.48062307,0.000225,2]
[424166497,1780623072000,-10176.97688076,0.000225,2]
[424166492,1780623072000,-1031.91,0.00022466,2]
[424166503,1780623072000,-187.729829,0.000225,2]
[424166504,1780623072000,-187.729825,0.000225,2]
[424166507,1780623072000,-1547.0,0.0002255,2]
[424166506,1780623072000,-1547.0,0.0002255,2]
[424166511,1780623072000,-152.0,0.0002255,2]
[424166508,1780623072000,-1547.0,0.0002255,2]
[424166505,1780623072000,-1547.0,0.0002255,2]
[424166509,1780623072000,-154.11024229,0.0002255,2]
[424166512,1780623072000,-152.0,0.0002255,2]
[424166499,1780623072000,-1962.20277148,0.000225,2]
[424166510,1780623072000,-152.0,0.0002255,2]
[424166573,1780623073000,-1377.42282658,0.00023128,2]
[424166581,1780623073000,-209.40437684,0.00023128,2]
[424166583,1780623073000,-693.39197629,0.00023128,2]
[424166579,1780623073000,-264.95651361,0.00023128,2]
[424166571,1780623073000,-1328.27659266,0.00023128,2]
[424166567,1780623073000,-743.50770149,0.00023128,2]
[424166566,1780623073000,-578.20924308,0.00023128,2]
[424166570,1780623073000,-200.0,0.00023128,2]
[424166569,1780623073000,-1280.88388877,0.00023128,2]
[424166582,1780623073000,-209.40437684,0.00023128,2]
[424166568,1780623073000,-151.0,0.00023128,2]
[424166586,1780623073000,-152.0,0.00023128,2]
[424166599,1780623073000,-152.0,0.00023128,2]
[424166584,1780623073000,-152.0,0.00023128,2]
[424166589,1780623073000,-1000.0,0.00023128,2]
[424166588,1780623073000,-152.0,0.00023128,2]
[424166590,1780623073000,-152.72135637,0.00023128,2]
[424166585,1780623073000,-721.12765534,0.00023128,2]
[424166580,1780623073000,-693.39197629,0.00023128,2]
[424166591,1780623073000,-152.0,0.00023128,2]
[424166603,1780623073000,-7160.72237861,0.000232,2]
[424166593,1780623073000,-152.0,0.00023128,2]
[424166592,1780623073000,-1000.0,0.00023128,2]
[424166594,1780623073000,-245.2315432,0.00023128,2]
[424166597,1780623073000,-152.0,0.00023128,2]
[424166576,1780623073000,-152.0,0.00023128,2]
[424166587,1780623073000,-1000.0,0.00023128,2]
[424166578,1780623073000,-500.0,0.00023128,2]
[424166552,1780623073000,-3515.0,0.00023,2]
[424166577,1780623073000,-209.40437684,0.00023128,2]
[424166541,1780623073000,-734.0,0.00023,2]
[424166542,1780623073000,-1083.0,0.00023,2]
[424166543,1780623073000,-486.0,0.00023,2]
[424166545,1780623073000,-2472.0,0.00023,2]
[424166551,1780623073000,-167.0,0.00023,7]
[424166544,1780623073000,-2011.0,0.00023,2]
[424166553,1780623073000,-994.0,0.00023,2]
[424166550,1780623073000,-678.0,0.00023,2]
[424166546,1780623073000,-905.0,0.00023,2]
[424166547,1780623073000,-226.0,0.00023,2]
[424166549,1780623073000,-446.0,0.00023,2]
[424166548,1780623073000,-3202.0,0.00023,2]
[424166574,1780623073000,-693.39197629,0.00023128,2]
[424166556,1780623073000,-200.0,0.00023109,2]
[424166555,1780623073000,-526.0,0.00023,2]
[424166562,1780623073000,-279.9045709,0.00023128,2]
[424166557,1780623073000,-1030.0,0.00023128,2]
[424166558,1780623073000,-1068.11,0.00023128,2]
[424166559,1780623073000,-151.0,0.00023128,2]
[424166563,1780623073000,-1191.11104074,0.00023128,2]
[424166560,1780623073000,-1107.63007,0.00023128,2]
[424166561,1780623073000,-1148.61238259,0.00023128,2]
[424166564,1780623073000,-174.61919141,0.00023128,2]
[424166565,1780623073000,-1235.18214925,0.00023128,2]
[424166572,1780623073000,-200.0,0.00023128,2]
[424166575,1780623073000,-1428.38747117,0.00023128,2]
[424166554,1780623073000,-1763.0,0.00023,2]
[424166595,1780623073000,-152.0,0.00023128,2]
[424166618,1780623073000,-773.24136889,0.00023293,2]
[424166598,1780623073000,-152.0,0.00023128,2]
[424166641,1780623073000,-151.0,0.00023513,2]
[424166640,1780623073000,-1173.81391609,0.000235,2]
[424166631,1780623073000,-862.28603014,0.00023458,2]
[424166636,1780623073000,-225.77,0.000235,2]
[424166634,1780623073000,-10176.97688076,0.000235,2]
[424166632,1780623073000,-7160.72237861,0.000235,2]
[424166635,1780623073000,-484.67,0.000235,2]
[424166639,1780623073000,-156.494329,0.000235,2]
[424166638,1780623073000,-151.0,0.000235,2]
[424166637,1780623073000,-151.0,0.000235,2]
[424166643,1780623073000,-894.19061325,0.00023513,2]
[424166652,1780623073000,-961.58486558,0.00023623,2]
[424166633,1780623073000,-2112.48062307,0.000235,2]
[424166642,1780623073000,-894.19061325,0.00023513,2]
[424166644,1780623073000,-151.0,0.00023568,2]
[424166654,1780623073000,-181.08010149,0.00023676,2]
[424166645,1780623073000,-927.27566594,0.00023568,2]
[424166647,1780623073000,-2500.0,0.00023599,2]
[424166646,1780623073000,-927.27566594,0.00023568,2]
[424166648,1780623073000,-1100.0,0.00023599,2]
[424166649,1780623073000,-1500.0,0.00023599,30]
[424166651,1780623073000,-961.58486558,0.00023623,2]
[424166657,1780623073000,-200.0,0.00023676,2]
[424166655,1780623073000,-771.01748644,0.00023676,2]
[424166656,1780623073000,-200.0,0.00023676,2]
[424166596,1780623073000,-152.0,0.00023128,2]
[424166653,1780623073000,-290.26104002,0.00023676,2]
[424166630,1780623073000,-862.28603014,0.00023458,2]
[424166650,1780623073000,-151.0,0.00023623,2]
[424166620,1780623073000,-801.85129954,0.00023348,2]
[424166629,1780623073000,-151.0,0.00023458,2]
[424166601,1780623073000,-719.04747942,0.00023183,2]
[424166600,1780623073000,-151.0,0.00023183,2]
[424166602,1780623073000,-719.04747942,0.00023183,2]
[424166604,1780623073000,-2112.48062307,0.000232,2]
[424166606,1780623073000,-314.63869382,0.000232,2]
[424166608,1780623073000,-200.0,0.00023222,2]
[424166605,1780623073000,-10176.97688076,0.000232,2]
[424166611,1780623073000,-745.65223615,0.00023238,2]
[424166616,1780623073000,-151.0,0.00023293,2]
[424166613,1780623073000,-1124.0,0.00023263,2]
[424166609,1780623073000,-2781.82699784,0.00023222,2]
[424166614,1780623073000,-182.01,0.00023288,2]
[424166607,1780623073000,-418.43372405,0.00023213,2]
[424166612,1780623073000,-745.65223615,0.00023238,2]
[424166621,1780623073000,-801.85129954,0.00023348,2]
[424166615,1780623073000,-150.0,0.00023288,2]
[424166627,1780623073000,-12822.87,0.0002343,2]
[424166624,1780623073000,-831.51979762,0.00023403,2]
[424166623,1780623073000,-831.51979762,0.00023403,2]
[424166626,1780623073000,-6019.65,0.0002343,2]
[424166625,1780623073000,-15340.2,0.00023405,7]
[424166610,1780623073000,-151.0,0.00023238,2]
[424166617,1780623073000,-773.24136889,0.00023293,2]
[424166619,1780623073000,-151.0,0.00023348,2]